bitfinex-derivatives/quotes_ETHF0:USTF0_20251028
["timestamp","ask_amount","ask_price","bid_price","bid_amount"]
[1761636721170,0.22282904,4126.5,4126.4,0.7724]
[1761636721368,0.43842904,4126.5,4126.4,0.7724]
[1761636721571,0.76222904,4126.5,4126.4,0.7724]
[1761636722076,0.3238,4126.4,4126.2,1.20614206]
[1761636722267,0.3238,4126.2,4125.6,1.20614206]
[1761636722471,0.7601,4125.7,4125.6,1.42184206]
[1761636722863,0.7601,4125.7,4125.6,1.63294206]
[1761636723069,0.4363,4125.7,4125.6,0.7724]
[1761636723973,40.8,4126.0,4125.7,0.3456]
[1761636724170,40.8,4126.0,4125.9,0.7724]
[1761636725667,41.1292,4126.0,4125.9,0.3456]
[1761636726470,41.1292,4126.0,4125.9,0.555]
[1761636728077,40.8,4126.0,4125.9,0.7811]
[1761636729670,41.129,4126.0,4125.9,0.7811]
[1761636730972,41.129,4126.0,4125.9,0.555]
[1761636731174,40.8,4126.0,4125.9,0.7811]
[1761636731372,40.8,4126.0,4125.9,2.07215083]
[1761636732475,40.8,4126.0,4125.9,0.7811]
[1761636733469,0.21082904,4126.5,4126.4,0.4511]
[1761636733669,0.21082904,4126.5,4126.4,0.7719]
[1761636734078,41.56232904,4126.5,4126.4,0.7719]
[1761636736782,41.56232904,4126.5,4126.4,0.3208]
[1761636738670,0.4312,4126.4,4126.2,0.85956342]
[1761636738877,0.329,4126.3,4126.2,0.85956342]
[1761636739072,0.7602,4126.2,4126.1,0.225]
[1761636739278,0.4312,4126.2,4126.1,2.17672513]
[1761636739580,0.4312,4126.2,4126.1,2.06124513]
[1761636739776,0.2087,4126.2,4126.1,2.06124513]
[1761636740281,0.2087,4126.2,4126.1,2.49752513]
[1761636741181,0.2087,4126.2,4126.1,2.06124513]
[1761636741378,0.2087,4126.2,4126.1,0.7719]
[1761636742180,0.7673,4126.2,4126.1,0.7719]
[1761636742381,0.4312,4126.2,4126.1,0.7719]
[1761636744389,0.4312,4126.2,4126.1,2.06220969]
[1761636746285,0.4312,4126.2,4126.1,0.7719]
[1761636746589,0.2087,4126.2,4126.1,0.7719]
[1761636746790,40.80212904,4126.5,4126.1,1.20818]
[1761636746992,40.80212904,4126.5,4126.4,1.63298175]
[1761636747195,40.80212904,4126.5,4126.4,1.20905]
[1761636747492,40.80212904,4126.5,4126.4,0.7728]
[1761636748187,0.00212904,4126.5,4126.4,0.7728]
[1761636749293,0.23172904,4126.5,4126.4,0.7728]
[1761636749491,0.78622904,4126.5,4126.4,0.7728]
[1761636750191,0.45012904,4126.5,4126.4,0.7728]
[1761636750493,0.00212904,4126.5,4126.4,0.7728]
[1761636751280,0.00212904,4126.5,4126.4,1.20905]
[1761636752105,0.00212904,4126.5,4126.4,2.49932263]
[1761636756297,0.00212904,4126.5,4126.4,1.20905]
[1761636756501,0.00212904,4126.5,4126.4,2.49885303]
[1761636757298,0.23002904,4126.5,4126.4,0.7728]
[1761636757495,0.77482904,4126.5,4126.4,2.06284035]
[1761636757695,0.77482904,4126.5,4126.4,0.7728]
[1761636758293,0.77482904,4126.5,4126.4,2.06284035]
[1761636758989,0.44522904,4126.5,4126.4,2.06284035]
[1761636759293,0.77482904,4126.5,4126.4,2.06284035]
[1761636761400,0.77482904,4126.5,4126.4,0.7728]
[1761636761593,0.44522904,4126.5,4126.4,0.7728]
[1761636762699,0.00212904,4126.5,4126.4,1.20905]
[1761636766206,0.00212904,4126.5,4126.4,0.7728]
[1761636766498,0.77482904,4126.5,4126.4,0.7728]
[1761636766699,0.77482904,4126.5,4126.4,2.06385275]
[1761636767604,0.77482904,4126.5,4126.4,0.7728]
[1761636768008,0.44522904,4126.5,4126.4,0.7728]
[1761636768303,0.44522904,4126.5,4126.4,2.06385275]
[1761636769303,0.77482904,4126.5,4126.4,2.06385275]
[1761636769508,0.77482904,4126.5,4126.4,1.61365275]
[1761636769805,0.77482904,4126.5,4126.4,2.05845275]
[1761636772611,0.44522904,4126.5,4126.4,2.05845275]
[1761636772812,0.77482904,4126.5,4126.4,2.05845275]
[1761636773415,0.77482904,4126.5,4126.4,0.7674]
[1761636777430,0.44522904,4126.5,4126.4,0.7674]
[1761636778127,0.44522904,4126.5,4126.4,2.05845275]
[1761636778518,0.44522904,4126.5,4126.4,0.7674]
[1761636779428,41.24522904,4126.5,4126.4,0.7674]
[1761636780026,41.57482904,4126.5,4126.4,0.7674]
[1761636780223,41.57482904,4126.5,4126.4,0.3226]
[1761636780415,41.57482904,4126.5,4126.3,1.29105275]
[1761636780416,0.7727,4126.4,4126.3,0.86184598]
[1761636780617,0.4431,4126.2,4126.1,0.86184598]
[1761636780817,3.08056116,4126.2,4125.3,0.3425]
[1761636781025,1.31873058,4125.4,4125.0,0.131]
[1761636781318,40.8,4125.3,4125.1,0.3425]
[1761636781722,40.8,4125.3,4124.7,0.3425]
[1761636781925,1.31873058,4124.8,4124.6,0.3425]
[1761636782924,1.31873058,4124.7,4124.6,0.3425]
[1761636783428,1.31873058,4124.7,4124.3,0.34446096]
[1761636783629,42.11873058,4124.7,4124.3,0.34446096]
[1761636783827,42.11873058,4124.7,4124.3,0.00196096]
[1761636784023,1.31873058,4124.4,4123.1,0.3425]
[1761636784328,1.31873058,4123.2,4123.1,0.3425]
[1761636784728,42.11873058,4123.2,4123.1,0.3425]
[1761636784925,42.12145442,4123.2,4123.1,0.34517755]
[1761636785931,41.83872364,4123.2,4123.1,0.34517755]
[1761636788930,42.87472344,4123.2,4123.1,0.34517755]
[1761636789133,42.87472344,4123.2,4123.1,0.00267755]
[1761636789326,43.06784515,4123.2,4123.1,0.00267755]
[1761636789531,41.83872364,4123.2,4123.1,0.32657755]
[1761636790035,42.87472344,4123.2,4123.1,0.32657755]
[1761636790231,41.83872364,4123.2,4123.1,0.32657755]
[1761636790433,42.87472344,4123.2,4123.1,0.32657755]
[1761636790624,41.83872364,4123.2,4123.1,0.32657755]
[1761636791533,42.87472344,4123.2,4123.1,0.32657755]
[1761636792632,41.83872364,4123.2,4123.1,0.32657755]
[1761636792933,42.87472344,4123.2,4123.1,0.32657755]
[1761636793133,41.83872364,4123.2,4123.1,0.32657755]
[1761636793526,42.87472344,4123.2,4123.1,0.32657755]
[1761636795229,41.83872364,4123.2,4123.1,0.75187755]
[1761636795837,41.83872364,4123.2,4123.1,0.00267755]
[1761636795838,42.87472344,4123.2,4123.1,0.00267755]
[1761636796533,42.87472344,4123.2,4123.1,0.32657755]
[1761636800841,50.87472344,4123.2,4123.1,0.32657755]
[1761636801344,50.87472344,4123.2,4123.0,0.1333]
[1761636801345,42.87472344,4123.2,4123.0,0.1333]
[1761636801548,1.0359998,4122.9,4122.5,0.4549]
[1761636801746,1.0359998,4122.6,4122.5,0.4549]
[1761636802044,41.8359998,4122.6,4122.5,0.4549]
[1761636802546,41.8359998,4122.6,4122.5,0.45801354]
[1761636803140,41.8359998,4122.6,4122.5,0.66811354]
[1761636803646,41.8359998,4122.6,4122.5,0.45801354]
[1761636804539,41.8359998,4122.6,4122.5,0.13411354]
[1761636804944,42.8719996,4122.6,4122.2,0.3239]
[1761636805142,2.0719996,4122.3,4121.5,0.131]
[1761636805348,1.0359998,4121.6,4121.2,0.3239]
[1761636805551,2.0719996,4121.3,4121.0,0.1333]
[1761636805742,2.0719996,4121.3,4120.5,0.1333]
[1761636805743,40.8,4121.1,4120.7,0.3239]
[1761636806046,2.0719996,4120.8,4120.7,0.00272811]
[1761636806548,2.26813915,4120.8,4120.7,0.00272811]
[1761636807246,43.06813915,4120.8,4120.7,0.32662811]
[1761636807442,40.8,4120.8,4120.7,0.53672811]
[1761636807749,42.8719996,4120.8,4120.7,0.53672811]
[1761636808248,42.8719996,4120.8,4120.7,0.32662811]
[1761636808740,42.8719996,4120.8,4120.7,0.00272811]
[1761636809343,43.40118554,4120.8,4120.7,0.00272811]
[1761636810346,43.40098627,4120.8,4120.7,0.00272811]
[1761636811750,43.40098627,4120.8,4120.7,0.32662811]
[1761636812649,43.40098627,4120.8,4120.7,0.00272811]
[1761636813048,43.40098627,4120.8,4120.7,0.32662811]
[1761636815749,43.40098627,4120.8,4120.7,0.00272811]
[1761636816158,43.40098627,4120.8,4120.5,0.1333]
[1761636816458,0.52898667,4120.7,4120.5,0.1333]
[1761636816656,0.52898667,4120.6,4120.5,0.1333]
[1761636817155,41.32898667,4120.6,4120.5,0.4648]
[1761636817356,41.32898667,4120.6,4120.5,0.46681853]
[1761636818155,41.32898667,4120.6,4120.5,0.69231853]
[1761636818755,41.32898667,4120.6,4120.5,0.46681853]
[1761636819650,41.32898667,4120.6,4120.5,0.69231853]
[1761636820052,40.8,4120.6,4120.5,0.46681853]
[1761636822359,41.32895839,4120.6,4120.5,0.46681853]
[1761636825462,41.32895839,4120.6,4120.5,0.90441853]
[1761636825463,40.8,4120.6,4120.5,0.90441853]
[1761636826259,40.8,4120.6,4120.5,0.69231853]
[1761636827767,40.8,4120.6,4120.5,0.90441853]
[1761636831261,41.33105108,4120.6,4120.5,0.90441853]
[1761636832868,41.33105108,4120.6,4120.5,0.46681853]
[1761636833070,41.33105108,4120.6,4120.5,0.13531853]
[1761636833262,41.33105108,4120.6,4120.5,0.46681853]
[1761636834170,42.19841879,4120.6,4120.5,0.46681853]
[1761636834468,41.33105108,4120.6,4120.5,0.69231853]
[1761636835670,41.33105108,4120.6,4120.5,0.46681853]
[1761636836058,41.33105108,4120.6,4120.5,0.69231853]
[1761636837168,41.33105108,4120.6,4120.5,0.46681853]
[1761636837668,41.33105108,4120.6,4120.2,0.3315]
[1761636837869,1.90916591,4120.3,4120.2,0.3315]
[1761636838069,2.44021699,4120.3,4120.2,0.3315]
[1761636838376,1.56705088,4120.3,4120.2,0.3315]
[1761636838562,1.56705088,4120.3,4120.2,0.33451592]
[1761636838563,1.56888088,4120.3,4120.2,0.33451592]
[1761636840372,2.60488068,4120.3,4119.6,0.3315]
[1761636840568,2.0719996,4119.7,4119.6,0.3315]
[1761636840768,2.60305068,4119.7,4119.6,0.3315]
[1761636841069,43.40305068,4119.7,4119.6,0.3315]
[1761636841478,43.40305068,4119.7,4119.6,0.33414547]
[1761636842166,42.36705088,4119.7,4119.6,0.77174547]
[1761636843774,42.36705088,4119.7,4119.6,0.33414547]
[1761636843974,43.40305068,4119.7,4119.6,0.33414547]
[1761636844169,42.36705088,4119.7,4119.6,0.55964547]
[1761636844370,43.40305068,4119.7,4119.6,0.55964547]
[1761636844876,43.40305068,4119.7,4119.6,0.33414547]
[1761636845372,43.40305068,4119.7,4119.6,0.56494547]
[1761636845575,43.40305068,4119.7,4119.6,0.33414547]
[1761636846372,43.40305068,4119.7,4119.6,0.00264547]
[1761636846676,43.40305068,4119.7,4119.6,0.31804547]
[1761636847076,43.40305068,4119.7,4119.1,0.3154]
[1761636847382,1.0359998,4119.2,4119.1,0.7532]
[1761636847674,40.8,4119.7,4119.1,0.7532]
[1761636847873,1.2456697,4119.2,4119.1,0.7532]
[1761636848179,1.2456697,4119.2,4119.1,0.75609357]
[1761636851479,1.2456697,4119.6,4119.5,0.8828]
[1761636851777,1.77610705,4119.6,4119.5,0.8828]
[1761636854187,1.2456697,4119.6,4119.5,0.8828]
[1761636857193,1.77611127,4119.6,4119.5,0.8828]
[1761636862595,1.77611127,4119.6,4119.2,0.3154]
[1761636862795,0.53044157,4119.5,4119.2,0.3154]
[1761636864194,40.8,4119.4,4119.2,0.3154]
[1761636864400,0.53044157,4119.3,4119.2,0.3154]
[1761636864701,0.53044157,4119.3,4119.1,0.00289357]
[1761636864902,1.2456697,4119.2,4119.1,0.00289357]
[1761636865101,1.77611127,4119.2,4119.1,0.00289357]
[1761636865300,1.77611127,4119.2,4119.1,0.31829357]
[1761636867206,1.77611127,4119.2,4119.1,0.00289357]
[1761636867404,2.64921116,4119.2,4119.1,0.00289357]
[1761636867596,43.44921116,4119.2,4119.1,0.00289357]
[1761636868109,42.57611127,4119.2,4119.1,0.00289357]
[1761636868518,42.57611127,4119.2,4119.1,0.31829357]
[1761636869815,42.57611127,4119.2,4119.1,0.75609357]
[1761636871317,42.57611127,4119.2,4119.1,0.54629357]
[1761636871817,42.57611127,4119.2,4119.1,0.75609357]
[1761636875716,0.53044157,4119.2,4119.1,0.75609357]
[1761636875914,1.2456697,4119.6,4119.5,0.9114]
[1761636876227,42.57832989,4119.6,4119.5,0.9114]
[1761636878221,42.0456697,4119.6,4119.5,0.9114]
[1761636881814,1.2456697,4120.0,4119.6,0.3458]
[1761636882019,1.2456697,4120.0,4119.9,0.786]
[1761636882319,42.57801012,4120.0,4119.9,0.786]
[1761636882730,42.0456697,4120.0,4119.9,0.786]
[1761636882922,1.2456697,4120.0,4119.9,0.786]
[1761636883123,0.00183,4120.3,4120.2,0.786]
[1761636883418,41.33405146,4120.3,4120.2,0.786]
[1761636884624,40.80183,4120.3,4120.2,0.786]
[1761636888320,0.00183,4120.3,4120.2,0.786]
[1761636889023,0.00183,4120.3,4120.2,0.3458]
[1761636889619,40.80183,4120.3,4120.2,0.5731]
[1761636889826,40.80183,4120.3,4120.2,0.786]
[1761636891731,42.0474997,4120.3,4120.2,0.786]
[1761636897431,42.0474997,4120.3,4120.2,0.3458]
[1761636897828,42.0474997,4120.3,4120.1,0.3458]
[1761636898036,42.0474997,4120.3,4119.6,0.3458]
[1761636898334,1.2456697,4119.7,4119.6,0.3458]
[1761636898536,1.2456697,4120.0,4119.6,0.3458]
[1761636898734,0.53132881,4119.9,4119.6,0.3458]
[1761636899034,1.2456697,4120.0,4119.6,0.3458]
[1761636899226,0.53132708,4119.9,4119.6,0.3458]
[1761636899429,1.2456697,4120.0,4119.6,0.3458]
[1761636899628,0.53150113,4119.9,4119.6,0.3458]
[1761636899826,1.2456697,4120.0,4119.6,0.3458]
[1761636900026,0.53150113,4119.9,4119.6,0.3458]
[1761636900229,1.2456697,4120.0,4119.6,0.3458]
[1761636900428,0.53166869,4119.9,4119.6,0.3458]
[1761636900634,1.2456697,4120.0,4119.6,0.3458]
[1761636900834,0.53166869,4119.9,4119.6,0.3458]
[1761636901033,2.4913394,4120.0,4119.6,0.3458]
[1761636901334,0.53166869,4119.9,4119.6,0.3458]
[1761636901536,0.53166869,4119.8,4119.6,0.3458]
[1761636901738,1.2456697,4120.0,4119.6,0.3458]
[1761636902040,0.53189429,4119.9,4119.6,0.3458]
[1761636902240,40.8,4119.7,4119.6,0.3458]
[1761636903332,41.33215318,4119.7,4119.6,0.3458]
[1761636906339,41.33215318,4119.7,4119.5,0.1254]
[1761636906639,40.8,4119.7,4119.6,0.3247]
[1761636906840,41.33234045,4119.7,4119.6,0.3247]
[1761636907844,41.33234045,4119.7,4119.6,0.7759]
[1761636908046,40.8,4119.7,4119.6,0.7759]
[1761636908236,41.33227781,4119.7,4119.6,0.5555]
[1761636908743,41.33227781,4119.7,4119.6,0.3247]
[1761636909945,42.37011141,4119.7,4119.6,0.3247]
[1761636910646,42.37011141,4119.7,4119.6,0.5555]
[1761636910941,41.8378336,4119.7,4119.6,0.5555]
[1761636911839,41.8378336,4119.7,4119.6,0.7759]
[1761636912042,0.00183,4120.3,4120.1,0.5433]
[1761636912243,0.00183,4120.3,4120.2,0.5433]
[1761636912439,40.80183,4120.3,4120.2,0.5433]
[1761636912643,41.33400243,4120.3,4120.2,0.5433]
[1761636913139,42.37183603,4120.3,4120.2,0.5433]
[1761636913343,42.37183603,4120.3,4120.2,0.3125]
[1761636915645,42.37183603,4120.3,4120.2,0.5433]
[1761636918842,42.37183603,4120.3,4120.2,0.3125]
[1761636919147,43.40966963,4120.3,4119.8,0.3125]
[1761636919444,1.0378336,4119.9,4119.8,0.3125]
[1761636919647,1.57000603,4119.9,4119.8,0.3125]
[1761636919846,2.60783963,4119.9,4119.8,0.3125]
[1761636920047,1.57000603,4119.9,4119.8,0.3125]
[1761636920750,1.57000603,4119.9,4119.8,0.5433]
[1761636921045,42.37000603,4119.9,4119.8,0.5433]
[1761636921246,42.37000603,4119.9,4119.8,0.7637]
[1761636921448,41.8378336,4119.9,4119.8,0.7637]
[1761636923151,42.3705859,4119.9,4119.8,0.7637]
[1761636923554,41.8378336,4119.9,4119.8,0.7637]
[1761636923847,1.0378336,4119.9,4119.8,0.7637]
[1761636924540,40.8,4120.2,4119.8,8.4512]
[1761636924746,0.00183,4120.3,4120.2,0.3125]
[1761636925049,1.0396636,4120.3,4120.2,0.7637]
[1761636925251,41.8396636,4120.3,4120.2,0.7637]
[1761636930561,41.8396636,4120.3,4120.2,1.2006]
[1761636930848,40.80183,4120.3,4120.2,1.2006]
[1761636931049,0.00183,4120.3,4120.2,1.2006]
[1761636931652,0.00183,4120.3,4120.2,2.48249812]
[1761636932053,0.00183,4120.3,4120.2,1.2006]
[1761636932855,41.8378336,4120.6,4120.5,0.8919]
[1761636933059,40.8,4120.6,4120.5,1.32877]
[1761636933353,1.0378336,4120.9,4120.8,0.7637]
[1761636933752,41.83982892,4120.9,4120.8,0.7637]
[1761636934553,1.03982892,4120.9,4120.8,0.7637]
[1761636934755,0.87309989,4122.2,4122.1,0.3429]
[1761636934953,43.60185053,4122.2,4121.6,0.3429]
[1761636935151,1.0378336,4121.7,4121.6,0.3429]
[1761636935346,1.0378336,4121.7,4121.6,0.5723]
[1761636935559,40.8,4122.2,4122.1,0.3429]
[1761636935755,42.37063497,4122.2,4122.1,0.3451221]
[1761636936163,41.8395542,4122.2,4122.1,0.3451221]
[1761636941068,41.8395542,4122.2,4122.1,0.5745221]
[1761636944670,41.8395542,4122.2,4122.1,0.3451221]
[1761636944871,1.0395542,4122.2,4122.1,0.0022221]
[1761636945068,2.0773878,4122.2,4122.1,0.3451221]
[1761636945268,42.8773878,4122.2,4122.1,0.3451221]
[1761636948371,42.8773878,4122.2,4122.1,0.0022221]
[1761636948578,43.40766013,4122.2,4121.5,0.4774]
[1761636948869,1.0378336,4121.6,4121.5,0.1345]
[1761636949063,1.0378336,4121.6,4121.5,0.3639]
[1761636949269,1.0378336,4121.6,4121.5,0.7068]
[1761636949472,1.0378336,4121.6,4121.5,0.70937157]
[1761636949869,1.0378336,4121.6,4121.5,0.47997157]
[1761636951973,41.8378336,4121.6,4121.5,0.47997157]
[1761636952275,41.8378336,4121.6,4121.5,0.70937157]
[1761636952476,41.8378336,4121.6,4121.5,0.93697157]
[1761636954776,41.8378336,4121.6,4121.5,0.47997157]
[1761636955873,41.8378336,4121.6,4121.5,0.70937157]
[1761636956580,41.8378336,4121.6,4121.5,0.93697157]
[1761636959682,42.36930811,4121.6,4121.5,0.70937157]
[1761636960583,42.36930811,4121.6,4121.5,0.47997157]
[1761636961878,42.36930811,4121.6,4121.5,0.70937157]
[1761636962473,42.36930811,4121.6,4121.5,0.93697157]
[1761636963077,42.36930811,4121.6,4121.5,0.47997157]
[1761636964180,42.36930811,4121.6,4121.5,0.70937157]
[1761636966686,42.36930811,4121.6,4121.5,0.93697157]
[1761636969681,41.33147451,4121.6,4121.5,0.93697157]
[1761636969885,42.57562204,4121.6,4121.5,0.93697157]
[1761636971382,42.57562204,4121.6,4121.5,0.70937157]
[1761636975487,42.57562204,4121.6,4121.5,0.47997157]
[1761636982589,42.57562204,4121.6,4121.5,0.00257157]
[1761636982889,43.81976957,4121.6,4120.8,1.28189812]
[1761636983082,1.24414753,4120.9,4120.5,0.4532]
[1761636983289,0.53147451,4120.8,4120.5,0.4532]
[1761636983490,0.53147451,4120.8,4120.2,0.325]
[1761636983793,1.24414753,4120.3,4120.2,0.325]
[1761636984091,1.77562204,4120.3,4120.2,0.32772336]
[1761636984297,1.77562204,4120.3,4120.2,0.00272336]
[1761636984592,42.57562204,4120.3,4120.2,0.00272336]
[1761636984785,42.77015592,4120.3,4120.2,0.00272336]
[1761636985898,42.57562204,4120.3,4120.2,0.32772336]
[1761636986696,42.04414753,4120.3,4120.2,0.32772336]
[1761636986897,40.8,4120.3,4120.2,0.75712336]
[1761636987394,41.33295492,4120.3,4120.2,0.00272336]
[1761636987997,42.57710245,4120.3,4119.7,0.325]
[1761636988192,1.24414753,4119.8,4119.7,0.325]
[1761636988393,1.24414753,4119.8,4119.7,0.5444]
[1761636988598,1.24414753,4119.8,4119.7,0.7544]
[1761636989099,1.24414753,4119.8,4119.7,0.54701201]
[1761636989596,1.24414753,4119.8,4119.7,0.32761201]
[1761636990294,1.24414753,4119.8,4119.7,0.75701201]
[1761636991495,1.24414753,4120.2,4120.1,0.5444]
[1761636991798,40.8,4120.3,4120.2,0.325]
[1761636992099,40.8,4120.3,4120.2,0.7544]
[1761636992290,40.8,4120.3,4120.2,0.325]
[1761636992492,40.8,4120.3,4120.1,0.325]
[1761636993094,40.8,4120.3,4120.0,0.1332]
[1761636993294,40.8,4120.3,4120.0,0.4582]
[1761636993602,0.53217787,4120.2,4119.8,0.325]
[1761636993794,1.24414753,4119.9,4119.8,0.325]
[1761636996203,1.24414753,4119.9,4119.8,0.5444]
[1761636999308,1.24414753,4119.9,4119.8,0.7745]
[1761636999700,40.8,4120.3,4120.2,0.7932]
[1761637006901,1.24414753,4120.7,4120.2,0.4511]
[1761637007209,1.24414753,4120.8,4120.7,0.7932]
[1761637007411,42.04414753,4120.8,4120.7,0.7932]
[1761637007909,40.8,4120.8,4120.7,0.7932]
[1761637009107,1.24414753,4121.2,4121.0,0.1321]
[1761637009412,1.24414753,4121.2,4121.1,0.7932]
[1761637009611,1.24414753,4121.6,4121.5,0.9253]
[1761637010007,1.24414753,4122.0,4121.9,0.5631]
[1761637010214,42.04414753,4122.0,4121.9,0.5631]
[1761637010614,42.04414753,4122.0,4121.9,0.7932]
[1761637011515,42.04414753,4122.0,4121.9,0.5631]
[1761637013708,42.04414753,4122.0,4121.9,0.3421]
[1761637013914,43.82046766,4122.0,4121.1,0.3421]
[1761637014214,43.82046766,4122.0,4121.0,0.1321]
[1761637014215,1.24414753,4121.2,4121.0,0.4742]
[1761637014713,1.24414753,4121.2,4121.1,0.3421]
[1761637014918,42.04414753,4121.2,4121.1,0.3421]
[1761637017419,42.04414753,4121.2,4120.6,0.5631]
[1761637017616,1.24414753,4120.7,4120.6,0.4511]
[1761637018020,1.24414753,4120.7,4120.6,0.7932]
[1761637019718,1.24414753,4120.7,4120.6,0.5631]
[1761637020620,1.24414753,4120.7,4120.5,0.4742]
[1761637020815,1.24414753,4120.7,4120.6,0.3421]
[1761637021811,1.24414753,4120.7,4120.3,0.3421]
[1761637022122,0.53313234,4120.6,4120.1,0.3421]
[1761637022317,1.24414753,4120.2,4120.1,0.3421]
[1761637022516,1.24414753,4120.2,4120.1,0.5631]
[1761637023019,1.24414753,4120.2,4120.1,0.7932]
[1761637024223,40.8,4121.2,4120.5,0.6952]
[1761637024224,1.24414753,4120.6,4120.5,0.6952]
[1761637024825,1.24414753,4120.6,4120.5,0.9253]
[1761637025026,1.24414753,4120.6,4120.5,0.6952]
[1761637026123,1.24414753,4120.6,4120.5,0.9127]
[1761637027323,1.24414753,4121.0,4120.9,0.5312]
[1761637027525,1.24414753,4121.0,4120.9,0.7549]
[1761637031114,1.24414753,4121.1,4121.0,0.8871]
[1761637031718,1.03701124,4121.1,4121.0,0.8871]
[1761637033429,1.03701124,4121.1,4121.0,0.6634]
[1761637033624,1.57084864,4121.1,4120.7,0.3175]
[1761637033927,2.07402248,4120.8,4120.5,0.4496]
[1761637034128,0.5338374,4120.7,4120.5,0.4496]
[1761637035419,0.5338374,4120.7,4120.5,0.1321]
[1761637035627,0.5338374,4120.7,4120.6,0.3175]
[1761637036221,0.5338374,4120.7,4120.5,0.1321]
[1761637036627,0.5338374,4120.7,4120.5,0.4496]
[1761637038230,0.5338374,4120.7,4120.6,0.3175]
[1761637040732,0.5338374,4120.7,4120.1,0.3175]
[1761637040934,1.03701124,4120.2,4120.1,0.3175]
[1761637041230,1.03701124,4120.2,4120.1,0.5312]
[1761637041431,41.83701124,4120.2,4120.1,0.5312]
[1761637043129,41.83701124,4120.2,4120.1,0.7549]
[1761637044235,41.83701124,4120.2,4120.1,0.5312]
[1761637044528,41.83701124,4120.2,4120.1,0.3175]
[1761637044731,42.37377768,4120.2,4119.7,0.32011201]
[1761637045034,1.03701124,4119.8,4119.7,0.32011201]
[1761637045330,1.57377768,4119.8,4119.7,0.32011201]
[1761637046731,40.8,4120.2,4120.1,0.3175]
[1761637046936,42.37361567,4120.2,4120.1,0.3175]
[1761637054036,42.37361567,4120.2,4120.1,0.5312]
[1761637054238,42.37361567,4120.2,4120.1,0.7549]
[1761637055342,41.83701124,4120.2,4120.1,0.7549]
[1761637059442,40.8,4120.2,4120.1,0.7549]
[1761637059643,1.03701124,4120.2,4120.1,0.4374]
[1761637060243,41.83701124,4120.2,4120.1,0.782]
[1761637061339,1.03701124,4120.2,4120.1,0.782]
[1761637061737,1.03701124,4120.5,4120.2,0.3446]
[1761637061942,40.8,4120.7,4120.6,0.7653]
[1761637062239,41.33683357,4120.7,4120.6,0.7653]
[1761637063241,42.37384481,4120.7,4120.6,0.7653]
[1761637065151,41.83701124,4120.7,4120.6,0.7653]
[1761637067042,40.8,4120.7,4120.6,0.7653]
[1761637067349,1.03701124,4120.8,4120.7,0.7653]
[1761637071044,40.8,4121.4,4121.1,0.5524]
[1761637071245,1.03701124,4121.2,4121.1,0.5524]
[1761637071549,1.5733956,4121.2,4121.1,0.5524]
[1761637072853,3.05243697,4123.4,4121.1,0.5524]
[1761637072854,0.87375328,4122.0,4121.8,0.4207]
[1761637073049,0.0017206,4122.2,4122.1,0.7653]
[1761637073247,41.83873184,4122.2,4122.1,0.5524]
[1761637073959,41.83873184,4122.2,4122.1,0.7653]
[1761637077350,1.03873184,4122.2,4122.1,0.7653]
[1761637077655,0.0017206,4122.2,4122.1,0.7653]
[1761637080759,1.03701124,4123.0,4122.9,0.7653]
[1761637081254,40.8,4123.1,4123.0,0.9015]
[1761637081754,0.00283804,4123.1,4123.0,0.90412788]
[1761637088759,1.03984928,4123.1,4123.0,0.90412788]
[1761637089963,0.00283804,4123.1,4123.0,1.34072788]
[1761637090260,0.00283804,4123.1,4123.0,0.90412788]
[1761637090864,0.00283804,4123.1,4123.0,1.34072788]
[1761637092463,1.24277866,4123.9,4123.8,0.7796]
[1761637092661,1.73320113,4126.0,4123.5,0.1279]
[1761637092662,0.19371716,4124.7,4124.6,0.3388]
[1761637092964,42.04277866,4124.7,4124.6,0.3388]
[1761637093266,50.0453372,4124.7,4124.6,0.3388]
[1761637093470,40.80255854,4124.7,4124.6,0.5665]
[1761637094162,40.80255854,4124.7,4124.6,0.7796]
[1761637095370,40.80255854,4124.7,4124.6,0.5665]
[1761637095867,40.80255854,4124.7,4124.6,0.3388]
[1761637098867,40.80255854,4124.7,4124.2,0.3388]
[1761637099176,0.2242,4123.1,4123.0,0.57962788]
[1761637099366,0.6868,4123.1,4123.0,0.57962788]
[1761637101161,0.6868,4123.1,4123.0,0.91842788]
[1761637102761,0.4425,4123.1,4123.0,0.91842788]
[1761637104773,0.6868,4123.1,4123.0,0.00262788]
[1761637105378,1.21593109,4123.1,4123.0,0.00262788]
[1761637105973,3.33246303,4123.1,4123.0,0.00262788]
[1761637106373,2.45870975,4123.1,4123.0,0.34142788]
[1761637106776,2.45870975,4123.1,4123.0,0.00262788]
[1761637106972,3.33246303,4123.1,4123.0,0.00262788]
[1761637108180,2.45870975,4123.1,4123.0,0.00262788]
[1761637108871,0.2443,4123.0,4122.2,0.5665]
[1761637109072,0.6868,4122.3,4122.2,0.5665]
[1761637110085,0.6868,4122.3,4122.2,0.56914723]
[1761637110374,0.4425,4122.3,4122.2,0.56914723]
[1761637110580,0.4425,4122.3,4122.2,0.78224723]
[1761637112280,0.6868,4122.3,4122.2,0.78224723]
[1761637112480,0.6868,4122.3,4122.2,0.34144723]
[1761637112679,0.6868,4122.3,4122.2,0.00264723]
[1761637112982,1.21564955,4122.3,4122.2,0.00264723]
[1761637113185,42.01564955,4122.3,4122.2,0.00264723]
[1761637113580,42.01564955,4122.3,4122.2,0.34144723]
[1761637114284,42.01564955,4122.3,4122.2,0.00264723]
[1761637116185,41.4868,4122.3,4122.2,0.00264723]
[1761637117886,41.4868,4122.3,4122.2,0.33664723]
[1761637118194,41.4868,4122.3,4122.2,0.00264723]
[1761637120396,41.4868,4122.3,4122.2,0.54644723]
[1761637122104,41.4868,4122.3,4122.2,0.33664723]
[1761637122401,41.4878,4122.3,4122.2,0.75484723]
[1761637122597,41.4878,4122.3,4122.2,0.33664723]
[1761637122798,41.4878,4122.3,4122.2,0.00264723]
[1761637126403,42.01633091,4122.3,4122.2,0.00264723]
[1761637132101,0.6962,4121.2,4121.1,0.334]
[1761637132296,1.93897866,4121.2,4121.1,0.5438]
[1761637132497,0.4509,4120.7,4120.6,0.4182]
[1761637132698,1.69367866,4120.7,4120.6,0.4182]
[1761637132900,42.49367866,4120.7,4120.6,0.4182]
[1761637133199,42.4960625,4120.7,4120.6,0.75527594]
[1761637136601,0.00238384,4120.7,4120.6,0.75527594]